Workbook

Sheet Chart
B2: Budget | C2: Tuition Revenue | D2: % of Budget Realized
A3: Master of Education | B3: ='Revenue Report'!N15 -> 1326000 | C3: ='Revenue Report'!N14 -> 1104661.37 | D3: ='Revenue Report'!N16 -> 0.8330779563
A4: EDD | B4: ='Revenue Report'!N22 -> 316358 | C4: ='Revenue Report'!N21 -> 311512.34 | D4: ='Revenue Report'!N23 -> 0.9846829857
A5: MBA | B5: ='Revenue Report'!N9 -> 479952 | C5: ='Revenue Report'!N8 -> 183849 | D5: ='Revenue Report'!N10 -> 0.3830570557
A6: Undergraduate | B6: ='Revenue Report'!N28 -> 13123050 | C6: ='Revenue Report'!N27 -> 12958851.5 | D6: ='Revenue Report'!N29 -> 0.9874877791
A7: Overall | B7: =SUM(B3:B6) -> 15245360 | C7: =SUM(C3:C6) -> 14558874.21 | D7: =C7/B7 -> 0.9549708377

Sheet Revenue Report
A1: Main Campus 2014-15 | N1: Unduplicated headcounts
B2: Beg of Term | C2: Beg of Term | H2: Beg of Term
B3: JUL | C3: AUG | D3: SEP | E3: OCT | F3: NOV | G3: DEC | H3: JAN | I3: FEB | J3: MAR | K3: APR | L3: MAY | N3: Totals
A4: Graduate
A5: MBA
A6: Credit Hours | B6: 69 | C6: 111 | E6: 0 | F6: - | H6: 120 | I6: 6 | J6: 3 | K6: -3 | N6: =SUM(B6:L6) -> 306
A7: Headcount | B7: 12 | C7: 12 | E7: 1 | F7: - | H7: 13 | I7: 1 | J7: 1 | K7: - | N7: 25
A8: Revenue | B8: 40227 | C8: 58176 | E8: 5454 | F8: - | H8: 72720 | I8: 3636 | J8: 1818 | K8: 1818 | N8: =SUM(B8:L8) -> 183849
M9: Budgeted Revenue | N9: 479952
M10: % Realized | N10: =N8/N9 -> 0.3830570557
A11: M.Ed. (All)
A12: Credit Hours | B12: 168 | C12: 1059.5 | E12: 27 | F12: 177 | H12: 1009 | I12: 18 | J12: 77.5 | K12: -6 | N12: =SUM(B12:L12) -> 2530
A13: Headcount | B13: 54 | C13: 165 | E13: 10 | F13: 50 | H13: 154 | I13: 10 | J13: 19 | K13: - | N13: 226
A14: Revenue All MED and MAT | B14: 72297 | C14: =464771 -> 464771 | E14: 153364.27 | F14: 3435 | H14: 451445 | I14: 17236 | J14: 1301 | K14: 3009 | N14: =SUM(B14:L14)-62196.9 -> 1104661.37
M15: Budgeted Revenue | N15: 1326000
M16: % Realized | N16: =N14/N15 -> 0.8330779563
A18: EDD
A19: Credit Hours | B19: 47 | C19: 323 | E19: -4 | F19: 1 | H19: 330 | I19: 9 | J19: -4 | K19: 3 | N19: =SUM(B19:L19) -> 705
A20: Headcount | B20: 11 | C20: 63 | E20: 4 | F20: 1 | H20: 69 | I20: 3 | J20: -1 | K20: - | N20: 78
A21: Revenue | B21: 16560 | C21: =126773 -> 126773 | E21: 38725.17 | F21: -574.33 | H21: 126772.67 | I21: 765.67 | J21: 8234.99 | K21: -5744.83 | N21: =SUM(B21:L21) -> 311512.34
M22: Budgeted Revenue | N22: 316358
M23: % Realized | N23: =N21/N22 -> 0.9846829857
A24: Undergraduate
A25: Credit Hours | B25: 42 | C25: 7962 | E25: 201.5 | F25: -381 | H25: 7384.5 | I25: -53.5 | J25: -30.5 | K25: 40 | N25: =SUM(B25:L25) -> 15165
A26: Headcount | B26: 10 | C26: 560 | E26: -5 | F26: -5 | H26: 540 | I26: 4 | J26: - | K26: 18 | N26: 619
A27: Revenue | B27: 18130.2 | C27: 6681708 | E27: 86308 | F27: -8196 | H27: 6121798.8 | I27: 39134.3 | J27: 3923.2 | K27: 16045 | N27: =SUM(B27:L27) -> 12958851.5
M28: Budgeted Revenue | N28: 13123050
M29: % Realized | N29: =N27/N28 -> 0.9874877791

Sheet Data (hidden)
A1: Division | B1: Revenue Budget | D1: Actual Revenue
A2: Undergraduate | B2: 9240000 | D2: ='Revenue Report'!N27 -> 12958851.5
A3: MBA | B3: 124200 | D3: ='Revenue Report'!N8 -> 183849
A4: M.Ed. | B4: 448448 | D4: ='Revenue Report'!N14 -> 1104661.37
B7: JUL | C7: AUG | D7: SEP | E7: OCT | F7: NOV | G7: DEC | H7: JAN | I7: FEB | J7: MAR | K7: APR | L7: MAY | M7: JUN | N7: Totals
A8: Graduate
A9: MBA
A10: Revenue | B10: ='Revenue Report'!B8 -> 40227 | C10: ='Revenue Report'!D8 -> 0 | D10: ='Revenue Report'!#REF! ->  | E10: ='Revenue Report'!E8 -> 5454 | F10: ='Revenue Report'!F8 -> - | G10: ='Revenue Report'!G8 -> 0 | H10: ='Revenue Report'!H8 -> 72720 | I10: ='Revenue Report'!I8 -> 3636 | J10: ='Revenue Report'!J8 -> 1818 | K10: ='Revenue Report'!K8 -> 1818 | L10: ='Revenue Report'!L8 -> 0 | M10: ='Revenue Report'!M8 -> 0 | N10: =SUM(B10:M10) -> 
A11: Budget | B11: 62100 | C11: 62100 | D11: 62100 | E11: 62100 | F11: 62100 | G11: 62100 | H11: 124200 | I11: 124200 | J11: 124200 | K11: 124200 | L11: 124200 | M11: 124200
M12: Budgeted Revenue | N12: 124200
M13: % Realized
A14: M.Ed.
A15: Revenue | B15: ='Revenue Report'!B14 -> 72297 | C15: ='Revenue Report'!D14 -> 0 | D15: ='Revenue Report'!#REF! ->  | E15: ='Revenue Report'!E14 -> 153364.27 | F15: ='Revenue Report'!F14 -> 3435 | G15: ='Revenue Report'!G14 -> 0 | H15: ='Revenue Report'!H14 -> 451445 | I15: ='Revenue Report'!I14 -> 17236 | J15: ='Revenue Report'!J14 -> 1301 | K15: ='Revenue Report'!K14 -> 3009 | L15: ='Revenue Report'!L14 -> 0 | M15: ='Revenue Report'!M14 -> 0 | N15: =SUM(B15:M15) -> 
A16: Budget | B16: 224224 | C16: 224224 | D16: 224224 | E16: 224224 | F16: 224224 | G16: 224224 | H16: 448448 | I16: 448448 | J16: 448448 | K16: 448448 | L16: 448448 | M16: 448448
M17: Budgeted Revenue | N17: 448448
M18: % Realized
A19: Undergraduate
A20: Revenue | B20: ='Revenue Report'!B27 -> 18130.2 | C20: ='Revenue Report'!#REF! ->  | D20: ='Revenue Report'!D27 -> 0 | E20: ='Revenue Report'!E27 -> 86308 | F20: ='Revenue Report'!F27 -> -8196 | G20: ='Revenue Report'!G27 -> 0 | H20: ='Revenue Report'!H27 -> 6121798.8 | I20: ='Revenue Report'!I27 -> 39134.3 | J20: ='Revenue Report'!J27 -> 3923.2 | K20: ='Revenue Report'!K27 -> 16045 | L20: ='Revenue Report'!L27 -> 0 | M20: ='Revenue Report'!M27 -> 0 | N20: =SUM(B20:M20) -> 
A21: Budget | B21: 4620000 | C21: 4620000 | D21: 4620000 | E21: 4620000 | F21: 4620000 | G21: 4620000 | H21: 9240000 | I21: 9240000 | J21: 9240000 | K21: 9240000 | L21: 9240000 | M21: 9240000
M22: Budgeted Revenue | N22: 9240000
M23: % Realized
N24: =SUM(B24:M24) -> 0
